fUSD/lending_fUSD_20260517
["ID","MTS","AMOUNT","RATE_DAILY","PERIOD"]
[422452837,1778964638000,-643.63423352,0.00014919,2]
[422452857,1778964638000,-9283.72038676,0.0001502,2]
[422452858,1778964638000,-371.78372095,0.00015043,2]
[422452873,1778964638000,-208.44072055,0.00015154,2]
[422452927,1778964638000,-364.76,0.00016574,2]
[422452834,1778964638000,-500.0,0.00014919,2]
[422452925,1778964638000,-647.77303177,0.00016507,2]
[422452974,1778964638000,-400.0,0.0002,2]
[422452977,1778964638000,-577.0,0.0002,2]
[422452976,1778964638000,-151.0,0.0002,2]
[422452975,1778964638000,-206.0,0.0002,2]
[422452979,1778964638000,-212.0,0.0002,2]
[422452980,1778964638000,-213.0,0.0002,2]
[422452982,1778964638000,-274.0,0.0002,2]
[422452983,1778964638000,-1813.22,0.0002,2]
[422452981,1778964638000,-880.0,0.0002,2]
[422452991,1778964638000,-2000.0,0.00020439,2]
[422452984,1778964638000,-158.71,0.00020023,2]
[422452988,1778964638000,-517.2,0.00020381,2]
[422452985,1778964638000,-215.96,0.00020064,2]
[422452973,1778964638000,-300.0,0.00019999,2]
[422452989,1778964638000,-2172.7296994,0.00020385,2]
[422452987,1778964638000,-2172.7296994,0.00020339,2]
[422452993,1778964638000,-150.0,0.00020453,2]
[422452992,1778964638000,-279.0,0.00020453,2]
[422452996,1778964638000,-3842.85,0.00020548,2]
[422452994,1778964638000,-215.0,0.00020453,2]
[422452995,1778964638000,-2774.21486537,0.00020471,2]
[422452997,1778964638000,-3842.85,0.00020548,2]
[422452998,1778964638000,-3842.85,0.00020548,2]
[422452999,1778964638000,-3842.83,0.00020548,2]
[422453000,1778964638000,-19032.04,0.00020548,2]
[422453002,1778964638000,-2172.7296994,0.00020558,2]
[422453001,1778964638000,-276.85799852,0.00020548,2]
[422452929,1778964638000,-2000.0,0.00017033,2]
[422452990,1778964638000,-2172.7296994,0.00020411,2]
[422452978,1778964638000,-740.0,0.0002,2]
[422452986,1778964638000,-2172.7296994,0.00020313,2]
[422452972,1778964638000,-1402.54213512,0.000198,2]
[422452969,1778964638000,-238.32596129,0.00019546,2]
[422452931,1778964638000,-1000.0,0.00017184,2]
[422452933,1778964638000,-2774.21486537,0.000172,2]
[422452935,1778964638000,-184.1,0.00017978,2]
[422452950,1778964638000,-517.2,0.0001841,2]
[422452949,1778964638000,-2000.0,0.00018401,2]
[422452952,1778964638000,-9283.72038676,0.0001856,2]
[422452937,1778964638000,-184.1,0.00017978,2]
[422452955,1778964638000,-364.76,0.00018646,2]
[422452954,1778964638000,-577.14414612,0.000186,2]
[422452944,1778964638000,-350.0,0.00018,2]
[422452942,1778964638000,-184.1,0.00017978,2]
[422452946,1778964638000,-2774.21486537,0.00018291,2]
[422452940,1778964638000,-184.1,0.00017978,2]
[422452956,1778964638000,-1229.72,0.000187,2]
[422452971,1778964638000,-150.43976418,0.000196,2]
[422452957,1778964638000,-2000.0,0.00018736,2]
[422452970,1778964638000,-1402.54213512,0.000196,2]
[422452964,1778964638000,-1402.54213512,0.000192,2]
[422452965,1778964638000,-170.86,0.00019234,2]
[422452963,1778964638000,-18345.59,0.00019178,2]
[422452966,1778964638000,-2774.21486537,0.00019381,2]
[422452962,1778964638000,-3000.0,0.00019178,2]
[422452968,1778964638000,-704.7051106,0.000195,2]
[422452961,1778964638000,-11186.88729278,0.00019,2]
[422452958,1778964638000,-150.0,0.000189,2]
[422452960,1778964638000,-1402.54213512,0.00019,2]
[422452959,1778964638000,-340.18,0.00018981,2]
[422452967,1778964638000,-1402.54213512,0.000194,2]
[422453051,1778964639000,-477.8,0.00021712,2]
[422453046,1778964639000,-477.8,0.00021431,2]
[422453045,1778964639000,-1000.0,0.00021417,7]
[422453058,1778964639000,-5000.0,0.00021918,2]
[422453056,1778964639000,-289.0529305,0.00021918,3]
[422453038,1778964639000,-2172.7296994,0.00021316,2]
[422453039,1778964639000,-2172.7296994,0.00021327,2]
[422453041,1778964639000,-2172.7296994,0.00021369,2]
[422453044,1778964639000,-276.85799852,0.00021404,2]
[422453040,1778964639000,-477.8,0.0002136,2]
[422453036,1778964639000,-3397.24,0.00021273,2]
[422453037,1778964639000,-477.8,0.0002129,2]
[422453052,1778964639000,-477.8,0.00021782,2]
[422453042,1778964639000,-6463.45,0.0002137,2]
[422453049,1778964639000,-477.8,0.00021571,2]
[422453071,1778964639000,-9283.72038676,0.000221,2]
[422453048,1778964639000,-2774.21486537,0.00021561,2]
[422453050,1778964639000,-477.8,0.00021642,2]
[422453057,1778964639000,-3074.97,0.00021918,2]
[422453053,1778964639000,-1813.22,0.00021847,2]
[422453054,1778964639000,-477.8,0.00021852,2]
[422453055,1778964639000,-500.0,0.00021863,2]
[422453062,1778964639000,-206.0,0.00022,2]
[422453059,1778964639000,-477.8,0.00021923,2]
[422453061,1778964639000,-450.0,0.00022,2]
[422453060,1778964639000,-477.8,0.00021993,2]
[422453070,1778964639000,-477.8,0.00022063,2]
[422453063,1778964639000,-151.0,0.00022,2]
[422453064,1778964639000,-577.0,0.00022,2]
[422453043,1778964639000,-2172.7296994,0.00021402,2]
[422453047,1778964639000,-477.8,0.00021501,2]
[422453032,1778964639000,-2172.7296994,0.00021238,2]
[422453005,1778964639000,-2172.7296994,0.00020588,2]
[422453034,1778964639000,-462.3,0.00021273,2]
[422453003,1778964639000,-2172.7296994,0.00020567,2]
[422453065,1778964639000,-740.0,0.00022,2]
[422453016,1778964639000,-206.0,0.00021,2]
[422453004,1778964639000,-2172.7296994,0.00020582,2]
[422453006,1778964639000,-500.0,0.00020592,2]
[422453015,1778964639000,-313.0,0.00021,2]
[422453009,1778964639000,-364.76,0.00020718,2]
[422453007,1778964639000,-2172.7296994,0.00020607,2]
[422453008,1778964639000,-2172.7296994,0.00020708,2]
[422453012,1778964639000,-2172.7296994,0.0002084,2]
[422453011,1778964639000,-2172.7296994,0.00020817,2]
[422453014,1778964639000,-10000.0,0.00021,2]
[422453010,1778964639000,-2172.7296994,0.00020789,2]
[422453013,1778964639000,-2172.7296994,0.00020928,2]
[422453035,1778964639000,-1675.19,0.00021273,2]
[422453018,1778964639000,-577.0,0.00021,2]
[422453028,1778964639000,-2172.7296994,0.00021109,2]
[422453029,1778964639000,-477.8,0.0002115,2]
[422453019,1778964639000,-740.0,0.00021,2]
[422453017,1778964639000,-151.0,0.00021,2]
[422453027,1778964639000,-477.8,0.00021079,2]
[422453023,1778964639000,-525.17782738,0.00021,2]
[422453024,1778964639000,-274.0,0.00021,2]
[422453020,1778964639000,-212.0,0.00021,2]
[422453021,1778964639000,-213.0,0.00021,2]
[422453026,1778964639000,-2172.7296994,0.00021026,2]
[422453022,1778964639000,-880.0,0.00021,2]
[422453025,1778964639000,-2172.7296994,0.00021018,2]
[422453031,1778964639000,-477.8,0.0002122,2]
[422453033,1778964639000,-1647.13,0.00021273,2]
[422453030,1778964639000,-1229.72,0.000212,2]
[422453069,1778964639000,-274.0,0.00022,2]
[422453066,1778964639000,-212.0,0.00022,2]
[422453068,1778964639000,-880.0,0.00022,2]
[422453108,1778964639000,-926.0,0.00022697,2]
[422453107,1778964639000,-3543.0,0.00022697,2]
[422453110,1778964639000,-1360.657,0.00022697,2]
[422453106,1778964639000,-2774.21486537,0.00022652,2]
[422453109,1778964639000,-756.128,0.00022697,2]
[422453111,1778964639000,-284.625,0.00022697,2]
[422453103,1778964639000,-1755.33,0.00022466,2]
[422453116,1778964639000,-432.422,0.00022697,2]
[422453128,1778964639000,-212.0,0.00023,2]
[422453126,1778964639000,-577.0,0.00023,2]
[422453117,1778964639000,-230.001,0.00022697,2]
[422453127,1778964639000,-740.0,0.00023,2]
[422453122,1778964639000,-181.08010149,0.00022808,2]
[422453123,1778964639000,-150.0,0.00022854,4]
[422453119,1778964639000,-6054.0,0.00022697,2]
[422453120,1778964639000,-150.0,0.0002275,4]
[422453115,1778964639000,-150.0,0.00022697,2]
[422453138,1778964639000,-193.99079007,0.00023313,3]
[422453067,1778964639000,-213.0,0.00022,2]
[422453130,1778964639000,-214.0,0.00023,2]
[422453134,1778964639000,-28168.0,0.000231,2]
[422453136,1778964639000,-150.0,0.00023269,4]
[422453135,1778964639000,-276.85799852,0.00023116,2]
[422453105,1778964639000,-21677.36662525,0.00022652,2]
[422453129,1778964639000,-213.0,0.00023,2]
[422453131,1778964639000,-880.0,0.00023,2]
[422453133,1778964639000,-150.0,0.00023062,4]
[422453124,1778964639000,-206.0,0.00023,2]
[422453125,1778964639000,-151.0,0.00023,2]
[422453121,1778964639000,-364.76,0.0002279,2]
[422453118,1778964639000,-250.0,0.00022697,2]
[422453132,1778964639000,-274.0,0.00023,2]
[422453101,1778964639000,-202.73185857,0.00022438,2]
[422453137,1778964639000,-150.0,0.00023269,4]
[422453102,1778964639000,-150.0,0.00022438,2]
[422453104,1778964639000,-1573.07,0.00022466,2]
[422453072,1778964639000,-477.86500783,0.00022133,2]
[422453076,1778964639000,-152.0,0.0002226,2]
[422453078,1778964639000,-152.0,0.0002226,2]
[422453074,1778964639000,-152.0,0.0002226,2]
[422453073,1778964639000,-151.0,0.0002226,2]
[422453083,1778964639000,-152.0,0.0002226,2]
[422453075,1778964639000,-152.0,0.0002226,2]
[422453085,1778964639000,-174.61919141,0.0002226,2]
[422453084,1778964639000,-152.0,0.0002226,2]
[422453081,1778964639000,-152.0,0.0002226,2]
[422453077,1778964639000,-152.0,0.0002226,2]
[422453079,1778964639000,-152.0,0.0002226,2]
[422453080,1778964639000,-152.0,0.0002226,2]
[422453086,1778964639000,-276.85799852,0.0002226,2]
[422453082,1778964639000,-152.0,0.0002226,2]
[422453093,1778964639000,-150.0,0.00022438,2]
[422453113,1778964639000,-1242.749,0.00022697,2]
[422453092,1778964639000,-150.0,0.00022438,2]
[422453114,1778964639000,-150.0,0.00022697,2]
[422453099,1778964639000,-150.0,0.00022438,2]
[422453096,1778964639000,-174.01032978,0.00022438,2]
[422453089,1778964639000,-151.09078875,0.00022407,2]
[422453097,1778964639000,-150.0,0.00022438,2]
[422453091,1778964639000,-150.3516787,0.00022438,2]
[422453112,1778964639000,-1281.822,0.00022697,2]
[422453100,1778964639000,-150.0,0.00022438,2]
[422453087,1778964639000,-517.2,0.00022353,2]
[422453090,1778964639000,-150.0,0.00022438,2]
[422453088,1778964639000,-151.09078876,0.00022407,2]
[422453095,1778964639000,-150.0,0.00022438,2]
[422453094,1778964639000,-150.0,0.00022438,2]
[422453185,1778964640000,-151.13147767,0.00024,2]
[422453184,1778964640000,-206.0,0.00024,2]
[422453183,1778964640000,-500.0,0.00024,2]
[422453193,1778964640000,-880.0,0.00024,2]
[422453176,1778964640000,-2000.0,0.00023981,2]
[422453181,1778964640000,-2000.0,0.00023981,2]
[422453178,1778964640000,-2000.0,0.00023981,2]
[422453174,1778964640000,-2000.0,0.00023981,2]
[422453170,1778964640000,-2000.0,0.00023981,2]
[422453175,1778964640000,-2000.0,0.00023981,2]
[422453173,1778964640000,-2000.0,0.00023981,2]
[422453182,1778964640000,-150.0,0.00023997,4]
[422453177,1778964640000,-2000.0,0.00023981,2]
[422453188,1778964640000,-740.0,0.00024,2]
[422453202,1778964640000,-2000.0,0.00024269,2]
[422453190,1778964640000,-212.0,0.00024,2]
[422453204,1778964640000,-2000.0,0.00024269,2]
[422453172,1778964640000,-2000.0,0.00023981,2]
[422453201,1778964640000,-2000.0,0.00024269,2]
[422453211,1778964640000,-509.0,0.00024384,2]
[422453212,1778964640000,-509.0,0.00024384,2]
[422453199,1778964640000,-2000.0,0.00024269,2]
[422453187,1778964640000,-577.0,0.00024,2]
[422453210,1778964640000,-1059.09261712,0.00024364,5]
[422453196,1778964640000,-150.0,0.000241,4]
[422453198,1778964640000,-2000.0,0.00024269,2]
[422453194,1778964640000,-274.0,0.00024,2]
[422453197,1778964640000,-2000.0,0.00024269,2]
[422453192,1778964640000,-213.0,0.00024,2]
[422453195,1778964640000,-150.0,0.000241,4]
[422453200,1778964640000,-2000.0,0.00024269,2]
[422453171,1778964640000,-2000.0,0.00023981,2]
[422453156,1778964640000,-2000.0,0.00023763,2]
[422453179,1778964640000,-2000.0,0.00023981,2]
[422453206,1778964640000,-2000.0,0.00024269,2]
[422453140,1778964640000,-150.0,0.00023373,4]
[422453141,1778964640000,-1229.72,0.000234,7]
[422453139,1778964640000,-187.78006525,0.00023356,2]
[422453142,1778964640000,-299.33286419,0.00023629,2]
[422453144,1778964640000,-150.0,0.00023685,4]
[422453145,1778964640000,-150.0,0.00023685,4]
[422453146,1778964640000,-150.0,0.00023685,4]
[422453152,1778964640000,-2000.0,0.00023763,2]
[422453154,1778964640000,-2000.0,0.00023763,2]
[422453143,1778964640000,-150.0,0.00023685,4]
[422453147,1778964640000,-1813.22,0.00023693,2]
[422453149,1778964640000,-21677.36662525,0.00023742,2]
[422453153,1778964640000,-2000.0,0.00023763,2]
[422453180,1778964640000,-2000.0,0.00023981,2]
[422453150,1778964640000,-2774.21486537,0.00023742,2]
[422453151,1778964640000,-2000.0,0.00023763,2]
[422453155,1778964640000,-2000.0,0.00023763,2]
[422453158,1778964640000,-2000.0,0.00023763,2]
[422453157,1778964640000,-2000.0,0.00023763,2]
[422453159,1778964640000,-2000.0,0.00023763,2]
[422453165,1778964640000,-704.7051106,0.0002398,2]
[422453161,1778964640000,-171.99539503,0.00023779,3]
[422453167,1778964640000,-2000.0,0.00023981,2]
[422453160,1778964640000,-2010.0,0.00023763,2]
[422453166,1778964640000,-2000.0,0.00023981,2]
[422453162,1778964640000,-5530.0,0.000239,3]
[422453164,1778964640000,-276.85799852,0.00023973,2]
[422453168,1778964640000,-2000.0,0.00023981,2]
[422453169,1778964640000,-2000.0,0.00023981,2]
[422453148,1778964640000,-300.0,0.00023699,2]
[422453209,1778964640000,-1134.20345133,0.00024364,5]
[422453163,1778964640000,-194.72792766,0.00023904,2]
[422453207,1778964640000,-150.0,0.00024308,4]
[422453242,1778964640000,-150.0,0.00024384,2]
[422453245,1778964640000,-151.8510736,0.00024384,2]
[422453247,1778964640000,-225.48548331,0.00024384,2]
[422453246,1778964640000,-500.0,0.00024384,2]
[422453250,1778964640000,-394.72312989,0.00024384,2]
[422453249,1778964640000,-500.0,0.00024384,2]
[422453244,1778964640000,-162.13449277,0.00024384,2]
[422453248,1778964640000,-500.0,0.00024384,2]
[422453254,1778964640000,-500.0,0.00024384,2]
[422453255,1778964640000,-500.0,0.00024384,2]
[422453259,1778964640000,-150.0,0.00024384,2]
[422453256,1778964640000,-150.0,0.00024384,2]
[422453257,1778964640000,-500.0,0.00024384,2]
[422453267,1778964640000,-500.0,0.00024384,2]
[422453263,1778964640000,-500.0,0.00024384,2]
[422453264,1778964640000,-201.93880536,0.00024384,2]
[422453258,1778964640000,-500.0,0.00024384,2]
[422453208,1778964640000,-517.2,0.00024324,2]
[422453269,1778964640000,-500.0,0.00024384,2]
[422453274,1778964640000,-500.0,0.00024384,2]
[422453268,1778964640000,-500.0,0.00024384,2]
[422453276,1778964640000,-176.93209112,0.00024384,2]
[422453271,1778964640000,-500.0,0.00024384,2]
[422453243,1778964640000,-150.0,0.00024384,2]
[422453270,1778964640000,-500.0,0.00024384,2]
[422453275,1778964640000,-500.0,0.00024384,2]
[422453261,1778964640000,-500.0,0.00024384,2]
[422453262,1778964640000,-150.0,0.00024384,2]
[422453260,1778964640000,-324.45353796,0.00024384,2]
[422453265,1778964640000,-424.08613198,0.00024384,2]
[422453266,1778964640000,-500.0,0.00024384,2]
[422453272,1778964640000,-500.0,0.00024384,2]
[422453240,1778964640000,-150.0,0.00024384,2]
[422453273,1778964640000,-500.0,0.00024384,2]
[422453251,1778964640000,-500.0,0.00024384,2]
[422453253,1778964640000,-150.0,0.00024384,2]
[422453203,1778964640000,-2000.0,0.00024269,2]
[422453214,1778964640000,-509.0,0.00024384,2]
[422453224,1778964640000,-509.0,0.00024384,2]
[422453225,1778964640000,-509.0,0.00024384,2]
[422453215,1778964640000,-509.0,0.00024384,2]
[422453217,1778964640000,-509.0,0.00024384,2]
[422453226,1778964640000,-509.0,0.00024384,2]
[422453216,1778964640000,-509.0,0.00024384,2]
[422453213,1778964640000,-509.0,0.00024384,2]
[422453218,1778964640000,-509.0,0.00024384,2]
[422453223,1778964640000,-509.0,0.00024384,2]
[422453220,1778964640000,-509.0,0.00024384,2]
[422453221,1778964640000,-509.0,0.00024384,2]
[422453219,1778964640000,-509.0,0.00024384,2]
[422453205,1778964640000,-2000.0,0.00024269,2]
[422453228,1778964640000,-509.0,0.00024384,2]
[422453222,1778964640000,-509.0,0.00024384,2]
[422453241,1778964640000,-261.82652302,0.00024384,2]
[422453236,1778964640000,-150.0,0.00024384,2]
[422453233,1778964640000,-509.0,0.00024384,2]
[422453235,1778964640000,-250.0,0.00024384,2]
[422453234,1778964640000,-509.7606324,0.00024384,2]
[422453232,1778964640000,-509.0,0.00024384,2]
[422453227,1778964640000,-509.0,0.00024384,2]
[422453230,1778964640000,-509.0,0.00024384,2]
[422453237,1778964640000,-250.0,0.00024384,2]
[422453238,1778964640000,-150.0,0.00024384,2]
[422453252,1778964640000,-500.0,0.00024384,2]
[422453231,1778964640000,-509.0,0.00024384,2]
[422453229,1778964640000,-509.0,0.00024384,2]
[422453239,1778964640000,-250.0,0.00024384,2]
[422453323,1778964641000,-1006.0,0.00024658,2]
[422453308,1778964641000,-1006.0,0.00024658,2]
[422453310,1778964641000,-1006.0,0.00024658,2]
[422453309,1778964641000,-1006.0,0.00024658,2]
[422453322,1778964641000,-1006.0,0.00024658,2]
[422453317,1778964641000,-1006.0,0.00024658,2]
[422453313,1778964641000,-1006.0,0.00024658,2]
[422453311,1778964641000,-1006.0,0.00024658,2]
[422453321,1778964641000,-1006.0,0.00024658,2]
[422453318,1778964641000,-1006.0,0.00024658,2]
[422453312,1778964641000,-1006.0,0.00024658,2]
[422453314,1778964641000,-1006.0,0.00024658,2]
[422453324,1778964641000,-1006.0,0.00024658,2]
[422453316,1778964641000,-1006.0,0.00024658,2]
[422453320,1778964641000,-1006.0,0.00024658,2]
[422453319,1778964641000,-1006.0,0.00024658,2]
[422453325,1778964641000,-1006.0,0.00024658,2]
[422453335,1778964641000,-186.665029,0.00024864,2]
[422453306,1778964641000,-1006.0,0.00024658,2]
[422453326,1778964641000,-1006.0,0.00024658,2]
[422453328,1778964641000,-5530.0,0.000247,5]
[422453332,1778964641000,-2774.21486537,0.00024832,2]
[422453327,1778964641000,-1006.0,0.00024658,2]
[422453329,1778964641000,-170.86,0.00024782,2]
[422453334,1778964641000,-151.0,0.00024864,2]
[422453330,1778964641000,-276.85799852,0.00024829,2]
[422453315,1778964641000,-1006.0,0.00024658,2]
[422453303,1778964641000,-150.0,0.0002462,4]
[422453299,1778964641000,-2000.0,0.00024546,2]
[422453304,1778964641000,-1000.0,0.00024658,2]
[422453331,1778964641000,-21677.36662525,0.00024832,2]
[422453280,1778964641000,-6017.0432433,0.00024503,2]
[422453279,1778964641000,-300.0,0.00024502,2]
[422453277,1778964641000,-150.0,0.00024384,2]
[422453278,1778964641000,-201.93286099,0.00024452,2]
[422453281,1778964641000,-120977.7178383,0.00024503,2]
[422453283,1778964641000,-85303.2200444,0.00024503,2]
[422453292,1778964641000,-2000.0,0.00024546,2]
[422453293,1778964641000,-2000.0,0.00024546,2]
[422453294,1778964641000,-2000.0,0.00024546,2]
[422453295,1778964641000,-2000.0,0.00024546,2]
[422453291,1778964641000,-2000.0,0.00024546,2]
[422453305,1778964641000,-679.41,0.00024658,2]
[422453285,1778964641000,-150.0,0.00024516,4]
[422453287,1778964641000,-2000.0,0.00024546,2]
[422453284,1778964641000,-1019.1162802,0.00024503,2]
[422453288,1778964641000,-2000.0,0.00024546,2]
[422453289,1778964641000,-2000.0,0.00024546,2]
[422453290,1778964641000,-2000.0,0.00024546,2]
[422453296,1778964641000,-2000.0,0.00024546,2]
[422453298,1778964641000,-2000.0,0.00024546,2]
[422453301,1778964641000,-2000.0,0.00024546,2]
[422453297,1778964641000,-2000.0,0.00024546,2]
[422453302,1778964641000,-2000.0,0.00024546,2]
[422453307,1778964641000,-1006.0,0.00024658,2]
[422453300,1778964641000,-2000.0,0.00024546,2]
[422453282,1778964641000,-35674.4977939,0.00024503,2]
[422453333,1778964641000,-161.0,0.00024861,3]
[422453286,1778964641000,-300.0,0.00024545,2]
[422453336,1778964641000,-186.665029,0.00024864,2]
[422453366,1778964641000,-151.0,0.00024932,2]
[422453371,1778964641000,-500.0,0.00024932,2]
[422453370,1778964641000,-500.0,0.00024932,2]
[422453372,1778964641000,-500.0,0.00024932,2]
[422453375,1778964641000,-500.0,0.00024932,2]
[422453374,1778964641000,-500.0,0.00024932,2]
[422453373,1778964641000,-500.0,0.00024932,2]
[422453376,1778964641000,-500.0,0.00024932,2]
[422453377,1778964641000,-500.0,0.00024932,2]
[422453378,1778964641000,-500.0,0.00024932,2]
[422453382,1778964641000,-500.0,0.00024932,2]
[422453381,1778964641000,-500.0,0.00024932,2]
[422453379,1778964641000,-500.0,0.00024932,2]
[422453385,1778964641000,-500.0,0.00024932,2]
[422453383,1778964641000,-500.0,0.00024932,2]
[422453388,1778964641000,-500.0,0.00024932,2]
[422453387,1778964641000,-500.0,0.00024932,2]
[422453389,1778964641000,-500.0,0.00024932,2]
[422453386,1778964641000,-500.0,0.00024932,2]
[422453384,1778964641000,-500.0,0.00024932,2]
[422453391,1778964641000,-500.0,0.00024932,2]
[422453390,1778964641000,-500.0,0.00024932,2]
[422453393,1778964641000,-500.0,0.00024932,2]
[422453392,1778964641000,-500.0,0.00024932,2]
[422453394,1778964641000,-500.0,0.00024932,2]
[422453395,1778964641000,-500.0,0.00024932,2]
[422453337,1778964641000,-151.0,0.00024864,2]
[422453365,1778964641000,-151.0,0.00024932,2]
[422453361,1778964641000,-150.0,0.00024932,4]
[422453380,1778964641000,-500.0,0.00024932,2]
[422453364,1778964641000,-576831.5098461,0.00024932,2]
[422453348,1778964641000,-2000.0,0.00024864,2]
[422453368,1778964641000,-500.0,0.00024932,2]
[422453338,1778964641000,-151.0,0.00024864,2]
[422453347,1778964641000,-2000.0,0.00024864,2]
[422453340,1778964641000,-151.0,0.00024864,2]
[422453342,1778964641000,-151.0,0.00024864,2]
[422453341,1778964641000,-151.0,0.00024864,2]
[422453339,1778964641000,-186.665029,0.00024864,2]
[422453344,1778964641000,-2000.0,0.00024864,2]
[422453345,1778964641000,-2000.0,0.00024864,2]
[422453343,1778964641000,-186.665029,0.00024864,2]
[422453350,1778964641000,-2000.0,0.00024864,2]
[422453360,1778964641000,-150.0,0.00024932,4]
[422453351,1778964641000,-2000.0,0.00024864,2]
[422453346,1778964641000,-2000.0,0.00024864,2]
[422453367,1778964641000,-500.0,0.00024932,2]
[422453352,1778964641000,-2000.0,0.00024864,2]
[422453363,1778964641000,-150.0,0.00024932,4]
[422453362,1778964641000,-150.0,0.00024932,4]
[422453359,1778964641000,-150.0,0.00024932,4]
[422453357,1778964641000,-500.61920959,0.00024931,2]
[422453358,1778964641000,-150.0,0.00024932,4]
[422453369,1778964641000,-500.0,0.00024932,2]
[422453353,1778964641000,-2000.0,0.00024864,2]
[422453355,1778964641000,-151.0,0.00024929,7]
[422453354,1778964641000,-2000.0,0.00024864,2]
[422453349,1778964641000,-2000.0,0.00024864,2]
[422453356,1778964641000,-151.0,0.00024929,7]
[422453434,1778964642000,-500.0,0.00024932,2]
[422453452,1778964642000,-500.0,0.00024932,2]
[422453437,1778964642000,-500.0,0.00024932,2]
[422453435,1778964642000,-500.0,0.00024932,2]
[422453432,1778964642000,-500.0,0.00024932,2]
[422453427,1778964642000,-500.0,0.00024932,2]
[422453433,1778964642000,-500.0,0.00024932,2]
[422453431,1778964642000,-500.0,0.00024932,2]
[422453430,1778964642000,-500.0,0.00024932,2]
[422453439,1778964642000,-500.0,0.00024932,2]
[422453429,1778964642000,-500.0,0.00024932,2]
[422453454,1778964642000,-170.940753,0.00024932,2]
[422453436,1778964642000,-500.0,0.00024932,2]
[422453446,1778964642000,-500.0,0.00024932,2]
[422453466,1778964642000,-246.575879,0.00024932,2]
[422453443,1778964642000,-500.0,0.00024932,2]
[422453442,1778964642000,-500.0,0.00024932,2]
[422453441,1778964642000,-500.0,0.00024932,2]
[422453451,1778964642000,-500.0,0.00024932,2]
[422453444,1778964642000,-500.0,0.00024932,2]
[422453448,1778964642000,-500.0,0.00024932,2]
[422453449,1778964642000,-500.0,0.00024932,2]
[422453445,1778964642000,-500.0,0.00024932,2]
[422453450,1778964642000,-500.0,0.00024932,2]
[422453447,1778964642000,-500.0,0.00024932,2]
[422453455,1778964642000,-151.0,0.00024932,2]
[422453456,1778964642000,-165.407147,0.00024932,2]
[422453440,1778964642000,-500.0,0.00024932,2]
[422453453,1778964642000,-500.0,0.00024932,2]
[422453438,1778964642000,-500.0,0.00024932,2]
[422453399,1778964642000,-500.0,0.00024932,2]
[422453423,1778964642000,-500.0,0.00024932,2]
[422453401,1778964642000,-500.0,0.00024932,2]
[422453396,1778964642000,-500.0,0.00024932,2]
[422453461,1778964642000,-151.0,0.00024932,2]
[422453397,1778964642000,-500.0,0.00024932,2]
[422453400,1778964642000,-500.0,0.00024932,2]
[422453398,1778964642000,-500.0,0.00024932,2]
[422453402,1778964642000,-500.0,0.00024932,2]
[422453403,1778964642000,-500.0,0.00024932,2]
[422453413,1778964642000,-500.0,0.00024932,2]
[422453404,1778964642000,-500.0,0.00024932,2]
[422453408,1778964642000,-500.0,0.00024932,2]